fUST/lending_fUST_20251014
["ID","MTS","AMOUNT","RATE_DAILY","PERIOD"]
[391198324,1760415917175,-25.71983624,0.00019911,2]
[391198325,1760415918595,-162.20460367,0.00019911,2]
[391198326,1760415920162,-248.09480461,0.00019911,2]
[391198327,1760415923954,-205.72926697,0.00019911,2]
[391198328,1760415926505,-165.30968499,0.00019911,2]
[391198329,1760415936642,-205.04921337,0.00019911,2]
[391198331,1760415939653,-300.00559851,0.00019911,2]
[391198332,1760415941727,-305.25489308,0.00019911,2]
[391198333,1760415945622,-519.00271622,0.00019911,2]
[391198334,1760415949713,-285.2868755,0.00019911,2]
[391198335,1760416009103,608.42,0.00019856,2]
[391198336,1760416018034,-203.32154272,0.00019857,2]
[391198337,1760416018057,-124.94460178,0.00019909,2]
[391198338,1760416021893,-305.8492098,0.0001991,2]
[391198339,1760416025355,-252.94334614,0.00019909,2]
[391198340,1760416063999,-47.05665386,0.00019909,2]
[391198341,1760416075906,628.6029266,0.00019858,2]
[391198342,1760416082383,300.0,0.00019909,2]
[391198343,1760416089033,600.67,0.00019869,2]
[391198344,1760416113234,8376.62376568,0.00015,2]
[391198345,1760416113256,10000.01,0.00015,2]
[391198346,1760416113276,10000.01,0.00015,2]
[391198347,1760416113298,1444.85951389,0.00015,2]
[391198350,1760416115839,2004.29207448,0.00018,2]
[391198351,1760416116621,5000.0,0.00019909,2]
[391198352,1760416117084,-401.6707902,0.0001991,2]
[391198353,1760416117112,-707.52,0.0001991,2]
[391198354,1760416117140,-707.52,0.0001991,2]
[391198355,1760416117169,-707.52,0.0001991,2]
[391198356,1760416117198,-707.52,0.0001991,2]
[391198357,1760416117225,-707.52,0.0001991,2]
[391198358,1760416117255,-707.52,0.0001991,2]
[391198359,1760416117394,-707.52,0.0001991,2]
[391198360,1760416117422,-707.52,0.0001991,2]
[391198361,1760416117450,-707.52,0.0001991,2]
[391198362,1760416117476,-707.52,0.0001991,2]
[391198363,1760416117503,-707.52,0.0001991,2]
[391198364,1760416117531,-707.52,0.0001991,2]
[391198365,1760416117558,-707.52,0.0001991,2]
[391198366,1760416118845,-707.52,0.0001991,2]
[391198367,1760416118879,-707.52,0.0001991,2]
[391198368,1760416118910,-707.52,0.0001991,2]
[391198369,1760416118940,-707.52,0.0001991,2]
[391198370,1760416118969,-707.52,0.0001991,2]
[391198371,1760416118998,-707.52,0.0001991,2]
[391198372,1760416119028,-707.52,0.0001991,2]
[391198373,1760416119160,-707.52,0.0001991,2]
[391198374,1760416119191,-707.52,0.0001991,2]
[391198375,1760416119221,-707.52,0.0001991,2]
[391198376,1760416119250,-526.6,0.0001991,2]
[391198377,1760416119278,-526.6,0.0001991,2]
[391198378,1760416119307,-526.6,0.0001991,2]
[391198379,1760416119335,-526.6,0.0001991,2]
[391198380,1760416119364,-526.6,0.0001991,2]
[391198381,1760416120891,-526.6,0.0001991,2]
[391198382,1760416120919,-526.6,0.0001991,2]
[391198383,1760416120946,-526.6,0.0001991,2]
[391198384,1760416120973,-526.6,0.0001991,2]
[391198385,1760416121001,-526.6,0.0001991,2]
[391198386,1760416121029,-526.6,0.0001991,2]
[391198387,1760416121056,-526.6,0.0001991,2]
[391198388,1760416121084,-526.6,0.0001991,2]
[391198389,1760416121111,-526.6,0.0001991,2]
[391198390,1760416121362,-526.6,0.0001991,2]
[391198391,1760416121390,-526.6,0.0001991,2]
[391198392,1760416121418,-526.6,0.0001991,2]
[391198393,1760416121447,-526.6,0.0001991,2]
[391198394,1760416121476,-526.6,0.0001991,2]
[391198395,1760416121505,-526.6,0.0001991,2]
[391198396,1760416121534,-526.6,0.0001991,2]
[391198397,1760416121562,-526.6,0.0001991,2]
[391198398,1760416121589,-526.6,0.0001991,2]
[391198399,1760416121951,1550.85841163,0.0001,2]
[391198400,1760416121973,790.09561198,0.0001,2]
[391198401,1760416122390,260.82739994,0.00015,2]
[391198402,1760416123117,-526.81066228,0.0001991,2]
[391198403,1760416123146,-229.1629505,0.0001991,2]
[391198404,1760416126610,481.83688461,0.00019909,2]
[391198405,1760416136925,500.0,0.00019909,2]
[391198406,1760416137159,500.0,0.00019909,2]
[391198407,1760416139104,5000.0,0.0001991,2]
[391198408,1760416142353,300.0,0.00019909,2]
[391198409,1760416142614,504.89653521,0.0001991,2]
[391198410,1760416162541,3195.11346479,0.00018945,2]
[391198411,1760416162567,10000.01,0.00018945,2]
[391198412,1760416162593,10000.01,0.00018945,2]
[391198413,1760416162618,10000.01,0.00018945,2]
[391198414,1760416162643,3968.58590401,0.00018945,2]
[391198415,1760416163438,1060.93955803,0.0001991,2]
[391198416,1760416169822,-9033.22970121,0.0001991,2]
[391198417,1760416169949,-10000.01,0.0001991,2]
[391198418,1760416171647,-10000.01,0.0001991,2]
[391198419,1760416171773,-10000.01,0.0001991,2]
[391198420,1760416173591,-10000.01,0.0001991,2]
[391198421,1760416173728,-966.73029879,0.0001991,2]
[391198422,1760416177664,696.39,0.00019902,3]
[391198423,1760416181518,181.20754466,0.00019811,2]
[391198424,1760416186098,5000.0,0.0001991,2]
[391198425,1760416187827,-150.0,0.00019911,2]
[391198426,1760416202111,300.0,0.0001991,2]
[391198427,1760416209656,4000.01,0.00019911,2]
[391198428,1760416230029,419.31125456,0.00019909,2]
[391198471,1760416232072,-502.22432333,0.00019911,2]
[391198472,1760416232082,-503.26272175,0.00019911,2]
[391198473,1760416232091,-501.84111804,0.00019911,2]
[391198474,1760416232100,-448.50611235,0.00019911,2]
[391198493,1760416238143,-51.49388765,0.00019911,2]
[391198494,1760416238154,-156.25110511,0.00019911,2]
[391198495,1760416238164,-500.0,0.00019911,2]
[391198496,1760416238174,-414.18027828,0.00019911,2]
[391198497,1760416238183,-500.0,0.00019911,2]
[391198498,1760416238193,-500.0,0.00019911,2]
[391198499,1760416238203,-379.49564867,0.00019911,2]
[391198500,1760416238213,-504.18161369,0.00019911,2]
[391198501,1760416238222,-209.65,0.00019911,2]
[391198502,1760416238231,-500.0,0.00019911,2]
[391198503,1760416238240,-500.0,0.00019911,2]
[391198504,1760416238250,-500.0,0.00019911,2]
[391198505,1760416238259,-500.0,0.00019911,2]
[391198507,1760416238269,-500.0,0.00019911,2]
[391198508,1760416238278,-481.86189425,0.00019911,2]
[391198509,1760416238288,-640.71,0.00019911,2]
[391198510,1760416238297,-640.71,0.00019911,2]
[391198511,1760416238306,-640.71,0.00019911,2]
[391198512,1760416238316,-640.71,0.00019911,2]
[391198513,1760416238325,-640.71,0.00019911,2]
[391198514,1760416238334,-640.71,0.00019911,2]
[391198515,1760416238343,-640.71,0.00019911,2]
[391198516,1760416238355,-640.71,0.00019911,2]
[391198517,1760416238364,-640.71,0.00019911,2]
[391198518,1760416238373,-640.71,0.00019911,2]
[391198519,1760416238382,-640.71,0.00019911,2]
[391198520,1760416238392,-640.71,0.00019911,2]
[391198521,1760416238401,-640.71,0.00019911,2]
[391198522,1760416238410,-640.71,0.00019911,2]
[391198523,1760416238419,-640.71,0.00019911,2]
[391198524,1760416238429,-640.71,0.00019911,2]
[391198525,1760416238438,-640.71,0.00019911,2]
[391198526,1760416238447,-640.71,0.00019911,2]
[391198527,1760416238457,-640.71,0.00019911,2]
[391198528,1760416238466,-640.71,0.00019911,2]
[391198529,1760416238475,-640.71,0.00019911,2]
[391198530,1760416238485,-640.71,0.00019911,2]
[391198531,1760416238495,-640.71,0.00019911,2]
[391198532,1760416238505,-640.88134741,0.00019911,2]
[391198533,1760416238514,-173.81100936,0.00019911,2]
[391198534,1760416238524,-267.7209271,0.00019911,2]
[391198535,1760416238534,-500.0,0.00019911,2]
[391198536,1760416238544,-500.0,0.00019911,2]
[391198537,1760416238554,-196.46271641,0.00019911,2]
[391198538,1760416238563,-539.34540536,0.00019911,2]
[391198539,1760416238573,-500.0,0.00019911,2]
[391198540,1760416238583,-604.69581179,0.00019911,2]
[391198541,1760416238593,-500.0,0.00019911,2]
[391198542,1760416238606,-277.23634142,0.00019911,2]
[391198543,1760416238616,-426.35252939,0.00019911,2]
[391198544,1760416238625,-500.0,0.00019911,2]
[391198545,1760416238635,-158.42110436,0.00019911,2]
[391198546,1760416238645,-613.58355882,0.00019911,2]
[391198547,1760416238654,-549.273115,0.00019911,2]
[391198548,1760416238663,-182.03773438,0.00019911,2]
[391198549,1760416238673,-245.68096037,0.00019911,2]
[391198550,1760416238683,-500.0,0.00019911,2]
[391198551,1760416238692,-391.60448807,0.00019911,2]
[391198552,1760416238702,-227.5292685,0.00019911,2]
[391198553,1760416238711,-500.0,0.00019911,2]
[391198554,1760416238721,-500.0,0.00019911,2]
[391198555,1760416238730,-314.59369817,0.00019911,2]
[391198556,1760416238739,-300.00559851,0.00019911,2]
[391198557,1760416238748,-634.1153543,0.00019911,2]
[391198558,1760416238758,-252.94334614,0.00019911,2]
[391198559,1760416238767,-195.33352392,0.00019911,2]
[391198560,1760416238778,-280944.19306707,0.00019912,2]
[391198561,1760416238787,-636.56854101,0.00019958,2]
[391198562,1760416238797,-500.0,0.00019958,2]
[391198563,1760416238807,-500.0,0.00019958,2]
[391198564,1760416238816,-500.0,0.00019958,2]
[391198565,1760416238825,-500.0,0.00019958,2]
[391198566,1760416238834,-500.0,0.00019958,2]
[391198567,1760416238843,-500.0,0.00019958,2]
[391198568,1760416238855,-271.48509161,0.00019999,2]
[391198569,1760416238864,-513.00319653,0.00019999,2]
[391198570,1760416238874,-204.63290815,0.0002,2]
[391198571,1760416238886,-40147.93971137,0.0002,20]
[391198572,1760416238897,-252.29265014,0.0002,7]
[391198573,1760416238906,-367.28391077,0.0002,2]
[391198574,1760416238916,-4063.97323895,0.0002,2]
[391198575,1760416238925,-500.87172248,0.00020011,2]
[391198576,1760416238935,-500.0,0.00020011,2]
[391198577,1760416238946,-500.0,0.00020011,2]
[391198578,1760416238955,-500.0,0.00020011,2]
[391198579,1760416238965,-500.0,0.00020011,2]
[391198580,1760416238974,-500.0,0.00020011,2]
[391198581,1760416238983,-500.0,0.00020011,2]
[391198582,1760416238993,-479.78,0.00020011,2]
[391198583,1760416239002,-502.39926703,0.00020011,2]
[391198584,1760416239011,-500.0,0.00020011,2]
[391198585,1760416239020,-500.0,0.00020011,2]
[391198586,1760416239029,-500.0,0.00020011,2]
[391198587,1760416239039,-500.0,0.00020011,2]
[391198588,1760416239048,-500.0,0.00020011,2]
[391198589,1760416239058,-500.0,0.00020011,2]
[391198590,1760416239068,-500.0,0.00020011,2]
[391198591,1760416239078,-180.47,0.00020011,2]
[391198592,1760416239087,-500.0,0.00020012,2]
[391198593,1760416239098,-500.0,0.00020012,2]
[391198594,1760416239107,-500.0,0.00020012,2]
[391198595,1760416239117,-500.0,0.00020012,2]
[391198596,1760416239127,-500.0,0.00020012,2]
[391198597,1760416239136,-500.0,0.00020012,2]
[391198598,1760416239146,-500.0,0.00020012,2]
[391198599,1760416239156,-500.0,0.00020012,2]
[391198600,1760416239166,-500.0,0.00020012,2]
[391198601,1760416239175,-500.0,0.00020012,2]
[391198602,1760416239185,-500.0,0.00020012,2]
[391198603,1760416239195,-500.0,0.00020012,2]
[391198604,1760416239204,-500.0,0.00020012,2]
[391198605,1760416239213,-500.0,0.00020012,2]
[391198606,1760416239222,-500.0,0.00020012,2]
[391198607,1760416239232,-500.0,0.00020012,2]
[391198608,1760416239242,-500.0,0.00020012,2]
[391198609,1760416239251,-500.0,0.00020012,2]
[391198610,1760416239261,-500.0,0.00020012,2]
[391198611,1760416239271,-500.0,0.00020012,2]
[391198612,1760416239281,-500.0,0.00020012,2]
[391198613,1760416239291,-500.0,0.00020012,2]
[391198614,1760416239301,-500.0,0.00020012,2]
[391198615,1760416239311,-500.0,0.00020012,2]
[391198616,1760416239321,-460.58913813,0.00020012,2]
[391198617,1760416239330,-500.82690747,0.00020012,2]
[391198618,1760416239339,-504.41193863,0.00020012,2]
[391198619,1760416239350,-502.71835885,0.00020062,2]
[391198620,1760416239359,-502.70306606,0.00020062,2]
[391198621,1760416239369,-503.78644034,0.00020062,2]
[391198622,1760416239379,-500.0,0.00020062,2]
[391198623,1760416239388,-500.0,0.00020062,2]
[391198624,1760416239398,-400.0,0.00020062,2]
[391198625,1760416239407,-500.0,0.00020062,2]
[391198626,1760416239417,-169.94,0.00020062,2]
[391198627,1760416239426,-500.0,0.00020062,2]
[391198628,1760416239437,-209.65,0.00020185,2]
[391198629,1760416239447,-1179.919696,0.00020187,2]
[391198630,1760416239458,-500.0,0.00020331,2]
[391198631,1760416239467,-500.0,0.00020331,2]
[391198632,1760416239476,-500.0,0.00020331,2]
[391198634,1760416239485,-500.0,0.00020331,2]
[391198635,1760416239495,-500.0,0.00020331,2]
[391198636,1760416239505,-500.0,0.00020331,2]
[391198637,1760416239514,-500.0,0.00020331,2]
[391198638,1760416239523,-500.0,0.00020331,2]
[391198639,1760416239532,-500.0,0.00020331,2]
[391198640,1760416239542,-500.0,0.00020331,2]
[391198641,1760416239552,-600.0,0.00020411,2]
[391198642,1760416239561,-300.0,0.00020453,2]
[391198644,1760416239571,-300.0,0.00020453,2]
[391198645,1760416239580,-300.0,0.00020453,2]
[391198646,1760416239589,-300.0,0.00020453,2]
[391198647,1760416239598,-300.0,0.00020453,2]
[391198648,1760416239608,-300.0,0.00020453,2]
[391198649,1760416239617,-300.0,0.00020453,2]
[391198650,1760416239627,-300.0,0.00020453,2]
[391198651,1760416239636,-300.0,0.00020453,2]
[391198652,1760416239645,-300.0,0.00020453,2]
[391198653,1760416239654,-300.0,0.00020453,2]
[391198654,1760416239664,-300.0,0.00020453,2]
[391198655,1760416239673,-300.0,0.00020453,2]
[391198656,1760416239682,-300.0,0.00020453,2]
[391198657,1760416239692,-300.0,0.00020453,2]
[391198658,1760416239701,-209.66181341,0.00020459,2]
[391198659,1760416239710,-172.5,0.00020511,2]
[391198660,1760416239719,-500.0,0.00020876,2]
[391198661,1760416239728,-500.0,0.00020876,2]
[391198662,1760416239737,-195.0,0.00021111,2]
[391198663,1760416239746,-593.03,0.00021329,2]
[391198664,1760416239755,-500.0,0.00021424,2]
[391198666,1760416239764,-1000.0,0.00021424,2]
[391198667,1760416239773,-220.0,0.00021682,2]
[391198669,1760416239782,-217.5,0.00021711,2]
[391198671,1760416239791,-975.31,0.000218,4]
[391198673,1760416239800,-252.0,0.00022,6]
[391198675,1760416239809,-31088.03,0.00022,7]
[391198676,1760416239819,-160.0,0.00022,7]
[391198678,1760416239828,-100205.62131227,0.00022,5]
[391198680,1760416239837,-240.0,0.00022311,2]
[391198682,1760416239846,-1186.06,0.00022344,2]
[391198684,1760416239855,-244.97268368,0.00022393,2]
[391198686,1760416239864,-250.0,0.00022393,2]
[391198688,1760416239873,-250.0,0.00022393,2]
[391198690,1760416239883,-250.0,0.00022393,2]
[391198692,1760416239897,-250.0,0.00022393,2]
[391198694,1760416239906,-250.0,0.00022393,2]
[391198696,1760416239916,-250.0,0.00022393,2]
[391198698,1760416239925,-250.0,0.00022393,2]
[391198700,1760416239935,-250.0,0.00022393,2]
[391198702,1760416239945,-250.0,0.00022393,2]
[391198704,1760416239954,-250.0,0.00022393,2]
[391198706,1760416239964,-250.0,0.00022393,2]
[391198707,1760416239973,-250.0,0.00022393,2]
[391198708,1760416239983,-250.0,0.00022393,2]
[391198709,1760416239992,-250.0,0.00022393,2]
[391198710,1760416240003,-250.0,0.00022393,2]
[391198712,1760416240013,-250.0,0.00022393,2]
[391198713,1760416240022,-250.0,0.00022393,2]
[391198715,1760416240031,-250.0,0.00022393,2]
[391198717,1760416240040,-720.0,0.00022452,20]
[391198719,1760416240050,-414.99384575,0.00022455,2]
[391198720,1760416240059,-262.5,0.00022911,2]
[391198721,1760416240068,-34000.0,0.00023,2]
[391198722,1760416240077,-11007.01805509,0.00023,2]
[391198723,1760416240086,-350.0,0.00023244,2]
[391198724,1760416240095,-1779.09,0.0002336,2]
[391198725,1760416240105,-1659.97538302,0.00023368,2]
[391198726,1760416240114,-285.0,0.00023511,2]
[391198727,1760416240123,-5333.94479104,0.00024,60]
[391198728,1760416240132,-307.5,0.00024111,2]
[391198729,1760416240141,-15744.27162837,0.00024142,2]
[391198730,1760416240151,-3734.94461179,0.00024282,2]
[391198731,1760416240160,-2372.12,0.00024376,2]
[391198732,1760416240169,-864.0,0.00024698,20]
[391198733,1760416240179,-330.0,0.00024711,2]
[391198734,1760416240188,-174.0,0.0002474,14]
[391198735,1760416240197,-500.0,0.00024873,2]
[391198736,1760416240205,-500.0,0.00024873,2]
[391198737,1760416240214,-500.0,0.00024873,2]
[391198738,1760416240223,-160.0,0.00024876,2]
[391198739,1760416240232,-402.43064913,0.00024876,2]
[391198740,1760416240242,-417.15472785,0.00024876,2]
[391198741,1760416240251,-160.00000002,0.000249,2]
[391198742,1760416240260,-377372.003496,0.000249,2]
[391198743,1760416240269,-177.54473752,0.00024992,2]
[391198744,1760416240278,-294.927,0.00025092,9]
[391198745,1760416240287,-628.60292658,0.00025129,2]
[391198746,1760416240296,-6633.26163054,0.00025195,2]
[391198747,1760416240305,-352.5,0.00025311,2]
[391198748,1760416240314,-2965.15,0.00025391,2]
[391198749,1760416240324,-1000.0,0.00025421,2]
[391198750,1760416240333,-1000.0,0.00025421,2]
[391198751,1760416240342,-500.0,0.00025421,2]
[391198752,1760416240353,-31088.03,0.000256,7]
[391198753,1760416240362,-375.0,0.00025911,2]
[391198754,1760416240371,-1500.0,0.00025968,2]
[391198755,1760416240380,-1000.0,0.00025968,2]
[391198756,1760416240389,-6462.34159358,0.00026,30]
[391198757,1760416240398,-7484.88,0.00026027,2]
[391198758,1760416240407,-3558.17,0.00026407,2]
[391198759,1760416240416,-397.5,0.00026511,2]
[391198760,1760416240425,-737.00803039,0.00026516,2]
[391198761,1760416240434,-160.0,0.00026614,3]
[391198762,1760416240443,-1179.919696,0.00026676,2]
[391198763,1760416240622,-1000.0,0.00026773,4]
[391198764,1760416240631,-256.38307905,0.00027111,2]
[391198765,1760416240641,-1006.4760575,0.00027123,3]
[391198766,1760416240651,-1000.0,0.00027167,30]
[391198767,1760416240660,-7484.88,0.00027397,4]
[391198768,1760416240670,-2988.08,0.000274,2]
[391198769,1760416240679,-4151.2,0.00027423,2]
[391198770,1760416240688,-159.0,0.00027479,25]
[391198771,1760416240698,-2473.25766201,0.00028,60]
[391198772,1760416240707,-339.0,0.00028018,2]
[391198773,1760416240717,-1503.0,0.00028348,2]
[391198774,1760416240726,-1192.479049,0.00028402,2]
[391198775,1760416240735,-4744.23,0.00028438,2]
[391198776,1760416240744,-1379.0,0.00028492,2]
[391198777,1760416240753,-151.0,0.000285,16]
[391198778,1760416240762,-1503.0,0.00028523,2]
[391198779,1760416240771,-160.0,0.00028686,4]
[391198780,1760416240781,-236.4709199,0.00028725,2]
[391198781,1760416240790,-1379.0,0.00028725,2]
[391198782,1760416240799,-521.37491996,0.0002876,2]
[391198783,1760416240808,-7484.88,0.00028767,6]
[391198784,1760416240817,-149136.66166159,0.000288,30]
[391198785,1760416240826,-1379.0,0.00028909,2]
[391198786,1760416240835,-981.0,0.00028968,2]
[391198787,1760416240844,-631.0,0.00028968,2]
[391198788,1760416240854,-2161.0,0.00028968,2]
[391198789,1760416240864,-411.0,0.00028968,2]
[391198790,1760416240873,-418.168,0.00028968,2]
[391198791,1760416240882,-1504.0,0.00028984,2]
[391198792,1760416240896,-1104.65859027,0.00029,2]
[391198793,1760416240905,-200.25802931,0.00029,120]
[391198794,1760416240914,-1379.0,0.00029003,7]
[391198795,1760416240924,-700.0,0.00029141,7]
[391198796,1760416240933,-1000.0,0.00029159,5]
[391198797,1760416240943,-2203.936,0.00029259,2]
[391198798,1760416240952,-500.933,0.00029259,2]
[391198799,1760416240961,-1286.86037832,0.00029312,2]
[391198800,1760416240970,-1379.0,0.00029321,2]
[391198801,1760416240979,-1286.86037832,0.00029344,2]
[391198802,1760416240988,-5033.04979759,0.00029376,24]
[391198803,1760416240998,-5000.0,0.00029376,22]
[391198804,1760416241007,-5000.0,0.00029376,23]
[391198805,1760416241016,-5000.0,0.00029376,21]
[391198806,1760416241025,-5000.0,0.00029376,20]
[391198807,1760416241034,-31088.03,0.000294,7]
[391198808,1760416241043,-2988.08,0.000294,2]
[391198809,1760416241052,-1532.38206024,0.00029432,2]
[391198810,1760416241061,-69742.4478,0.00029444,2]
[391198811,1760416241070,-5337.26,0.00029454,2]
[391198812,1760416241079,-1379.0,0.00029457,2]
[391198813,1760416241088,-1379.0,0.00029508,2]
[391198814,1760416241099,-1379.0,0.00029535,2]
[391198815,1760416241108,-600.0,0.00029548,2]
[391198816,1760416241117,-95000.0,0.0002956,2]
[391198817,1760416241125,-151.0,0.000296,16]
[391198818,1760416241134,-1442315.09274137,0.00029601,4]
[391198819,1760416241149,-171.0,0.00029671,35]
[391198820,1760416241159,-1286.86037832,0.00029751,2]
[391198821,1760416241167,-600.0,0.00029856,2]
[391198822,1760416241177,-1000.0,0.00029884,30]
[391198823,1760416241185,-244.0,0.00029884,30]
[391198824,1760416241194,-1286.86037832,0.00029934,2]
[391198825,1760416241204,-700.0,0.00029963,7]
[391198826,1760416241212,-1379.0,0.00029966,2]
[391198827,1760416241221,-500.0,0.00029973,5]
[391198828,1760416241230,-2546.56826755,0.0003,2]
[391198829,1760416241239,-1103.0,0.0003,7]
[391198830,1760416241248,-790.35504747,0.0003,2]
[391198831,1760416241257,-7284.07544672,0.0003,2]
[391198832,1760416241266,-301.41338794,0.0003,120]
[391198833,1760416241275,-7114.23578319,0.0003,30]
[391198834,1760416241284,-198831.13342791,0.0003,9]
[391198835,1760416241353,-1530261.27333011,0.0003,9]
[391198836,1760416241362,-525.10596981,0.0003,2]
[391198837,1760416241371,-179.563,0.0003,2]
[391198838,1760416241380,-183.839,0.0003,2]
[391198839,1760416241389,-183.839,0.0003,2]
[391198840,1760416241398,-154.473212,0.0003,30]
[391198841,1760416241407,-151.0,0.0003,30]
[391198842,1760416241416,-151.0,0.0003,30]
[391198843,1760416241425,-151.0,0.0003,30]
[391198844,1760416241433,-500.0,0.0003007,5]
[391198845,1760416241442,-152873.29644372,0.000301,3]
[391198846,1760416241451,-834.71302304,0.0003012,7]
[391198847,1760416241461,-400.0,0.00030136,120]
[391198848,1760416241470,-7484.88,0.00030136,8]
[391198849,1760416241479,-1379.0,0.00030137,2]
[391198850,1760416241489,-600.0,0.00030163,2]
[391198851,1760416241497,-1507.642386,0.000302,4]
[391198852,1760416241507,-1503.0,0.00030256,7]
[391198853,1760416241516,-512.35255983,0.0003027,5]
[391198854,1760416241525,-200.3671795,0.00030273,5]
[391198855,1760416241534,-400.0,0.00030273,120]
[391198856,1760416241543,-886164.30549328,0.00030299,2]
[391198857,1760416241559,-960.88302587,0.00030299,2]
[391198858,1760416241570,-1191.63000027,0.00030299,2]
[391198859,1760416241580,-1111.2111318,0.00030299,2]
[391198860,1760416242087,-3e-08,0.00020331,2]
[391198861,1760416242102,-499.99999997,0.00020331,2]
[391198862,1760416242111,-10845.00000003,0.00030299,2]
[391198863,1760416242660,-500.0,0.00020331,2]
[391198864,1760416242970,500.0,0.00020331,2]
[391198866,1760416243179,-1139.37670942,0.00030299,2]
[391198877,1760416245210,500.0,0.00020331,2]
[391198884,1760416247437,500.0,0.00020331,2]
[391198885,1760416249678,500.0,0.00020331,2]
[391198886,1760416251902,500.0,0.00020331,2]
[391198887,1760416254155,500.0,0.00020331,2]
[391198888,1760416256426,500.0,0.00020331,2]
[391198889,1760416258714,500.0,0.00020331,2]
[391198890,1760416260996,500.0,0.00020331,2]
[391198891,1760416261492,500.0,0.00019958,2]
[391198892,1760416263212,500.0,0.00020331,2]
[391198893,1760416265451,500.0,0.00020331,2]
[391198894,1760416265591,500.0,0.00019958,2]
[391198895,1760416265802,500.0,0.0001991,2]
[391198896,1760416267700,500.0,0.00020331,2]
[391198897,1760416269937,464.25,0.00020331,2]
[391198907,1760416288829,500.0,0.0001991,2]
[391198908,1760416316065,535.76,0.00019811,2]
[391198909,1760416316088,10000.01,0.00019811,2]
[391198910,1760416316111,10000.01,0.00019811,2]
[391198911,1760416316132,10000.01,0.00019811,2]
[391198912,1760416316154,10000.01,0.00019811,2]
[391198913,1760416316178,10000.01,0.00019811,2]
[391198914,1760416316201,10000.01,0.00019811,2]
[391198915,1760416316223,10000.01,0.00019811,2]
[391198916,1760416316243,10000.01,0.00019811,2]
[391198917,1760416316265,10000.01,0.00019811,2]
[391198918,1760416323768,-300.0,0.0001981,2]
[391198919,1760416325930,-9803.10120078,0.00019811,2]
[391198920,1760416326098,-10000.01,0.00019811,2]
[391198921,1760416326223,-10000.01,0.00019811,2]
[391198922,1760416326386,-10000.01,0.00019811,2]
[391198923,1760416326509,-10000.01,0.00019811,2]
[391198924,1760416326618,-10000.01,0.00019811,2]
[391198925,1760416326736,-10000.01,0.00019811,2]
[391198926,1760416326850,-10000.01,0.00019811,2]
[391198927,1760416327005,-10000.01,0.00019811,2]
[391198928,1760416337057,151.0,0.00017999,2]
[391198929,1760416338039,151.0,0.00018137,2]
[391198930,1760416339038,151.0,0.00018274,2]
[391198931,1760416340043,151.0,0.00018412,2]
[391198932,1760416341035,151.0,0.00018549,2]
[391198933,1760416342015,151.0,0.00018687,2]
[391198934,1760416343041,151.0,0.00018824,2]
[391198935,1760416343841,-365.66607262,0.00019613,2]
[391198936,1760416344044,151.0,0.00018962,2]
[391198937,1760416345909,-151.0,0.000191,2]
[391198938,1760416348985,-184.28583924,0.00019613,2]
[391198939,1760416350307,-529.21761542,0.00019417,2]